[Event "*** Titled Tuesday Blitz"]
[Site "Chess.com"]
[Date "2020.11.03"]
[Round "7"]
[White "rasmussvane"]
[Black "suyu28"]
[Result "1-0"]
[WhiteElo "2932"]
[BlackElo "2648"]
[TimeControl "180+1"]
[EndTime "11:20:32 PST"]
[Termination "rasmussvane won by resignation"]

1. Nf3 {[%clk 0:03:00.9]} 1... d5 {[%clk 0:02:56.6]} 2. g3 {[%clk 0:03:01.1]}
2... g6 {[%clk 0:02:56.8]} 3. Bg2 {[%clk 0:03:00.3]} 3... Bg7 {[%clk 0:02:57]}
4. d4 {[%clk 0:03:00.8]} 4... Nf6 {[%clk 0:02:57]} 5. O-O {[%clk 0:03:01.3]}
5... O-O {[%clk 0:02:56.9]} 6. c4 {[%clk 0:03:01.7]} 6... dxc4 {[%clk
0:02:57.8]} 7. Na3 {[%clk 0:03:02]} 7... c3 {[%clk 0:02:55.5]} 8. bxc3 {[%clk
0:03:02.9]} 8... c5 {[%clk 0:02:55.8]} 9. Bb2 {[%clk 0:03:00.6]} 9... Nc6 {[%clk
0:02:53.9]} 10. Re1 {[%clk 0:03:01]} 10... Bf5 {[%clk 0:02:49.1]} 11. d5 {[%clk
0:03:00.1]} 11... Na5 {[%clk 0:02:08.8]} 12. c4 {[%clk 0:02:58.7]} 12... Be4
{[%clk 0:01:53.7]} 13. Nd2 {[%clk 0:02:51.9]} 13... Bxg2 {[%clk 0:01:53.1]} 14.
Kxg2 {[%clk 0:02:52.8]} 14... Rb8 {[%clk 0:01:43.5]} 15. e4 {[%clk 0:02:51.9]}
15... a6 {[%clk 0:01:42.6]} 16. Rb1 {[%clk 0:02:46]} 16... Nd7 {[%clk
0:01:39.6]} 17. Bxg7 {[%clk 0:02:42.1]} 17... Kxg7 {[%clk 0:01:40.5]} 18. e5
{[%clk 0:02:30.7]} 18... b5 {[%clk 0:01:27.2]} 19. cxb5 {[%clk 0:01:50.7]} 19...
Nb6 {[%clk 0:01:26.2]} 20. d6 {[%clk 0:01:50]} 20... exd6 {[%clk 0:01:22.6]} 21.
bxa6 {[%clk 0:01:50.4]} 21... d5 {[%clk 0:01:09.6]} 22. Qc2 {[%clk 0:01:32.4]}
22... Rc8 {[%clk 0:00:54.1]} 23. Qc3 {[%clk 0:01:28.5]} 23... Nac4 {[%clk
0:00:45.1]} 24. Naxc4 {[%clk 0:01:24.1]} 24... dxc4 {[%clk 0:00:45.2]} 25. e6+
{[%clk 0:01:24.2]} 25... Qd4 {[%clk 0:00:42.3]} 26. Qxd4+ {[%clk 0:01:21]} 26...
cxd4 {[%clk 0:00:42.6]} 27. Rxb6 {[%clk 0:01:20.7]} 27... c3 {[%clk 0:00:43]}
28. Nb3 {[%clk 0:01:14.2]} 28... d3 {[%clk 0:00:42.9]} 29. Rb7 {[%clk 0:01:12]}
29... c2 {[%clk 0:00:20]} 30. a7 {[%clk 0:01:08.2]} 30... Rfe8 {[%clk 0:00:15]}
31. Rxf7+ {[%clk 0:00:39.5]} 31... Kg8 {[%clk 0:00:14.5]} 32. Rd7 {[%clk
0:00:39.7]} 32... Rcd8 {[%clk 0:00:08.6]} 33. Rxd8 {[%clk 0:00:39]} 33... Rxd8
{[%clk 0:00:08.6]} 34. e7 {[%clk 0:00:39.4]} 34... Re8 {[%clk 0:00:02.7]} 35.
a8=Q {[%clk 0:00:39.7]} 35... Rxa8 {[%clk 0:00:03.4]} 36. e8=Q+ {[%clk
0:00:40.6]} 36... Rxe8 {[%clk 0:00:04.3]} 37. Rxe8+ {[%clk 0:00:41.2]} 37... Kf7
{[%clk 0:00:05.2]} 38. Rd8 {[%clk 0:00:42.1]} 38... Ke7 {[%clk 0:00:02.2]} 39.
Rxd3 {[%clk 0:00:41.7]} 1-0

[Event "*** Titled Tuesday Blitz"]
[Site "Chess.com"]
[Date "2020.11.03"]
[Round "7"]
[White "TrickyFortem"]
[Black "lider34"]
[Result "1/2-1/2"]
[WhiteElo "2544"]
[BlackElo "2405"]
[TimeControl "180+1"]
[EndTime "11:20:33 PST"]
[Termination "Game drawn by repetition"]

1. e4 {[%clk 0:02:58.8]} 1... c6 {[%clk 0:02:59.3]} 2. d4 {[%clk 0:02:58.8]}
2... d5 {[%clk 0:03:00.2]} 3. Nc3 {[%clk 0:02:58.9]} 3... dxe4 {[%clk
0:02:59.6]} 4. Nxe4 {[%clk 0:02:59.8]} 4... Nf6 {[%clk 0:03:00]} 5. Nxf6+ {[%clk
0:03:00.5]} 5... exf6 {[%clk 0:03:00.7]} 6. c3 {[%clk 0:03:01.4]} 6... Bd6
{[%clk 0:03:00.2]} 7. Bd3 {[%clk 0:03:02.3]} 7... O-O {[%clk 0:02:59.8]} 8. Qc2
{[%clk 0:03:03]} 8... Re8+ {[%clk 0:02:59.9]} 9. Ne2 {[%clk 0:03:03.7]} 9... h5
{[%clk 0:02:59.9]} 10. Be3 {[%clk 0:03:02.2]} 10... Nd7 {[%clk 0:02:59.4]} 11.
O-O-O {[%clk 0:03:01.4]} 11... Nf8 {[%clk 0:02:58.7]} 12. Kb1 {[%clk 0:03:00.2]}
12... Be6 {[%clk 0:02:52.7]} 13. Nf4 {[%clk 0:02:59.6]} 13... Bxf4 {[%clk
0:02:51.5]} 14. Bxf4 {[%clk 0:02:59.7]} 14... b5 {[%clk 0:02:49.4]} 15. Be4
{[%clk 0:02:55.9]} 15... Bd5 {[%clk 0:02:48.8]} 16. f3 {[%clk 0:02:52]} 16... a5
{[%clk 0:02:44.9]} 17. Rhe1 {[%clk 0:02:50.9]} 17... a4 {[%clk 0:02:42.3]} 18.
Bf5 {[%clk 0:02:37.5]} 18... Be6 {[%clk 0:02:36.9]} 19. Be4 {[%clk 0:02:35.5]}
19... Bd5 {[%clk 0:02:36.6]} 20. Bd3 {[%clk 0:02:35.7]} 20... Be6 {[%clk
0:02:30.1]} 21. a3 {[%clk 0:02:34.9]} 21... Qd5 {[%clk 0:02:20.2]} 22. Kc1
{[%clk 0:02:34.4]} 22... Qa2 {[%clk 0:02:04.2]} 23. Qb1 {[%clk 0:02:26.7]} 23...
Qd5 {[%clk 0:02:03.4]} 24. Rd2 {[%clk 0:02:23.8]} 24... Qd7 {[%clk 0:01:42.5]}
25. Rde2 {[%clk 0:02:22.4]} 25... Rad8 {[%clk 0:01:38.7]} 26. Re3 {[%clk
0:02:15.4]} 26... h4 {[%clk 0:01:34]} 27. h3 {[%clk 0:02:07.8]} 27... Bd5 {[%clk
0:01:15.5]} 28. Rxe8 {[%clk 0:02:05.1]} 28... Rxe8 {[%clk 0:01:14.9]} 29. Rxe8
{[%clk 0:02:04.6]} 29... Qxe8 {[%clk 0:01:14.8]} 30. Kd2 {[%clk 0:02:05.1]}
30... Ng6 {[%clk 0:01:02.2]} 31. Bh2 {[%clk 0:02:02.1]} 31... Qe6 {[%clk
0:00:55]} 32. Qe1 {[%clk 0:02:01.4]} 32... Qxe1+ {[%clk 0:00:47.6]} 33. Kxe1
{[%clk 0:02:02.3]} 33... Kf8 {[%clk 0:00:42.4]} 34. Bg1 {[%clk 0:02:01.7]} 34...
Nf4 {[%clk 0:00:40.3]} 35. Bf1 {[%clk 0:02:01.7]} 35... g5 {[%clk 0:00:40.1]}
36. Be3 {[%clk 0:02:01.1]} 36... Ke7 {[%clk 0:00:34.5]} 37. Bxf4 {[%clk
0:02:00]} 37... gxf4 {[%clk 0:00:34]} 38. Kd2 {[%clk 0:01:56.3]} 38... Bc4
{[%clk 0:00:33.6]} 39. Bd3 {[%clk 0:01:56.6]} 39... Kd6 {[%clk 0:00:31.4]} 40.
Bf5 {[%clk 0:01:53.7]} 40... Bf1 {[%clk 0:00:29.3]} 41. Ke1 {[%clk 0:01:51.7]}
41... Bc4 {[%clk 0:00:28.8]} 42. Be4 {[%clk 0:01:49.7]} 42... Bd5 {[%clk
0:00:26.9]} 43. Bd3 {[%clk 0:01:47.9]} 43... Bc4 {[%clk 0:00:26.9]} 44. Kd2
{[%clk 0:01:48.4]} 44... Bd5 {[%clk 0:00:23.6]} 45. Be2 {[%clk 0:01:44.4]} 45...
Be6 {[%clk 0:00:22.9]} 46. c4 {[%clk 0:01:42.1]} 46... Bxc4 {[%clk 0:00:21]} 47.
Bd3 {[%clk 0:01:30.4]} 47... Bxd3 {[%clk 0:00:19.2]} 48. Kxd3 {[%clk 0:01:30.7]}
48... Kd5 {[%clk 0:00:19.4]} 49. Kc3 {[%clk 0:01:31.1]} 49... c5 {[%clk
0:00:19.5]} 50. dxc5 {[%clk 0:01:31.7]} 50... Kxc5 {[%clk 0:00:19.8]} 51. Kd3
{[%clk 0:01:32.4]} 51... f5 {[%clk 0:00:19.6]} 52. Kc3 {[%clk 0:01:32.4]} 52...
f6 {[%clk 0:00:19.7]} 53. Kd3 {[%clk 0:01:32.8]} 53... b4 {[%clk 0:00:19.9]} 54.
axb4+ {[%clk 0:01:31.1]} 54... Kxb4 {[%clk 0:00:19.5]} 55. Kd2 {[%clk 0:01:30]}
55... Kb3 {[%clk 0:00:19.1]} 56. Kc1 {[%clk 0:01:30.4]} 56... a3 {[%clk
0:00:18.7]} 57. bxa3 {[%clk 0:01:30.4]} 57... Kxa3 {[%clk 0:00:18.9]} 58. Kc2
{[%clk 0:01:31.3]} 58... Kb4 {[%clk 0:00:19]} 59. Kd3 {[%clk 0:01:31.3]} 59...
Kc5 {[%clk 0:00:18.9]} 60. Kc3 {[%clk 0:01:31.6]} 60... Kd5 {[%clk 0:00:18.5]}
61. Kd3 {[%clk 0:01:31.9]} 61... Kc5 {[%clk 0:00:18.6]} 62. Kc3 {[%clk
0:01:30.5]} 62... Kd5 {[%clk 0:00:18.5]} 63. Kd3 {[%clk 0:01:26.5]} 63... Kc5
{[%clk 0:00:18]} 1/2-1/2

[Event "*** Titled Tuesday Blitz"]
[Site "Chess.com"]
[Date "2020.11.03"]
[Round "7"]
[White "GameOverBro"]
[Black "crazy_but_lazy"]
[Result "0-1"]
[WhiteElo "2519"]
[BlackElo "2465"]
[TimeControl "180+1"]
[EndTime "11:20:33 PST"]
[Termination "crazy_but_lazy won by resignation"]

1. e4 {[%clk 0:03:00.9]} 1... c6 {[%clk 0:02:58.8]} 2. Nc3 {[%clk 0:03:00.4]}
2... d5 {[%clk 0:02:59.3]} 3. Nf3 {[%clk 0:03:00.1]} 3... Bg4 {[%clk 0:02:57]}
4. h3 {[%clk 0:02:59.6]} 4... Bxf3 {[%clk 0:02:56.1]} 5. Qxf3 {[%clk 0:03:00.5]}
5... e6 {[%clk 0:02:56.6]} 6. a3 {[%clk 0:02:59.2]} 6... Nd7 {[%clk 0:02:56.8]}
7. d3 {[%clk 0:02:57.2]} 7... g6 {[%clk 0:02:56.9]} 8. Qg3 {[%clk 0:02:56.7]}
8... Bg7 {[%clk 0:02:56.1]} 9. Be2 {[%clk 0:02:56.8]} 9... Ne7 {[%clk
0:02:56.4]} 10. O-O {[%clk 0:02:56.7]} 10... O-O {[%clk 0:02:56.4]} 11. f4
{[%clk 0:02:54.8]} 11... f5 {[%clk 0:02:56.4]} 12. h4 {[%clk 0:02:46]} 12...
Qb6+ {[%clk 0:02:47]} 13. Kh1 {[%clk 0:02:37.1]} 13... h5 {[%clk 0:02:40.3]} 14.
Nd1 {[%clk 0:01:57.8]} 14... Kh7 {[%clk 0:02:11.8]} 15. Nf2 {[%clk 0:01:52.1]}
15... Nf6 {[%clk 0:01:37.9]} 16. Nh3 {[%clk 0:01:48.9]} 16... c5 {[%clk
0:01:34.8]} 17. Bf3 {[%clk 0:01:41.9]} 17... Ng4 {[%clk 0:01:11]} 18. b4 {[%clk
0:01:32.8]} 18... Bxa1 {[%clk 0:01:03.8]} 19. e5 {[%clk 0:01:21.5]} 19... cxb4
{[%clk 0:00:59.4]} 20. axb4 {[%clk 0:01:17.5]} 20... Bd4 {[%clk 0:00:58.2]} 21.
Ng5+ {[%clk 0:01:04.6]} 21... Kh6 {[%clk 0:00:56.7]} 22. Bd2 {[%clk 0:01:00.7]}
22... Bf2 {[%clk 0:00:51.4]} 23. Qh3 {[%clk 0:00:59.3]} 23... Rac8 {[%clk
0:00:40.4]} 24. c3 {[%clk 0:00:55.6]} 24... Rc6 {[%clk 0:00:30]} 25. d4 {[%clk
0:00:54.4]} 25... Be3 {[%clk 0:00:26.1]} 26. Bxe3 {[%clk 0:00:33]} 26... Nxe3
{[%clk 0:00:27]} 27. Rc1 {[%clk 0:00:33.5]} 27... Ng4 {[%clk 0:00:26.8]} 28.
Bxg4 {[%clk 0:00:30.6]} 28... fxg4 {[%clk 0:00:23.3]} 29. Qe3 {[%clk 0:00:27.5]}
29... Nf5 {[%clk 0:00:22.5]} 30. Qd3 {[%clk 0:00:26.4]} 30... Qxd4 {[%clk
0:00:14.8]} 31. Qf1 {[%clk 0:00:13.3]} 31... Ng3+ {[%clk 0:00:13.1]} 0-1

[Event "*** Titled Tuesday Blitz"]
[Site "Chess.com"]
[Date "2020.11.03"]
[Round "7"]
[White "lelya96"]
[Black "Agoking701"]
[Result "0-1"]
[WhiteElo "2206"]
[BlackElo "2363"]
[TimeControl "180+1"]
[EndTime "11:20:33 PST"]
[Termination "Agoking701 won by checkmate"]

1. e4 {[%clk 0:03:00.9]} 1... e6 {[%clk 0:02:58.4]} 2. d4 {[%clk 0:02:59.5]}
2... d5 {[%clk 0:02:59.3]} 3. Nc3 {[%clk 0:03:00]} 3... Nf6 {[%clk 0:02:57.9]}
4. Bg5 {[%clk 0:02:59.9]} 4... Be7 {[%clk 0:02:55.6]} 5. e5 {[%clk 0:02:58.7]}
5... Nfd7 {[%clk 0:02:55.9]} 6. Bxe7 {[%clk 0:02:58.4]} 6... Qxe7 {[%clk
0:02:56.8]} 7. f4 {[%clk 0:02:58.5]} 7... c5 {[%clk 0:02:56.6]} 8. Nf3 {[%clk
0:02:58.5]} 8... Nc6 {[%clk 0:02:56]} 9. dxc5 {[%clk 0:02:50.8]} 9... Nxc5
{[%clk 0:02:53]} 10. Bd3 {[%clk 0:02:50.1]} 10... a6 {[%clk 0:02:50.5]} 11. O-O
{[%clk 0:02:48.1]} 11... b5 {[%clk 0:02:50.8]} 12. a3 {[%clk 0:02:48.2]} 12...
Bb7 {[%clk 0:02:50.4]} 13. Qe2 {[%clk 0:02:47.5]} 13... Rc8 {[%clk 0:02:50.1]}
14. Kh1 {[%clk 0:02:46]} 14... g6 {[%clk 0:02:48.4]} 15. Rae1 {[%clk 0:02:44.1]}
15... b4 {[%clk 0:02:22]} 16. axb4 {[%clk 0:02:39.7]} 16... Nxb4 {[%clk
0:02:22.9]} 17. Nd4 {[%clk 0:02:30.1]} 17... O-O {[%clk 0:02:16.8]} 18. Rf3
{[%clk 0:02:12]} 18... Ne4 {[%clk 0:01:42.2]} 19. Nxe4 {[%clk 0:01:34.8]} 19...
dxe4 {[%clk 0:01:33.6]} 20. Bxe4 {[%clk 0:01:33.9]} 20... Bxe4 {[%clk
0:01:30.3]} 21. Qxe4 {[%clk 0:01:33.7]} 21... Rfd8 {[%clk 0:01:15.6]} 22. c3
{[%clk 0:01:30]} 22... Nd5 {[%clk 0:01:15.6]} 23. Rh3 {[%clk 0:01:27.5]} 23...
Qb7 {[%clk 0:01:06.5]} 24. Re2 {[%clk 0:01:04.7]} 24... Rb8 {[%clk 0:01:00.9]}
25. f5 {[%clk 0:00:46.9]} 25... exf5 {[%clk 0:00:42.3]} 26. Nxf5 {[%clk
0:00:40]} 26... Nxc3 {[%clk 0:00:26.2]} 27. Nh6+ {[%clk 0:00:20]} 27... Kg7
{[%clk 0:00:18.4]} 28. Rxc3 {[%clk 0:00:15.4]} 28... Qxe4 {[%clk 0:00:15]} 29.
Rce3 {[%clk 0:00:12.3]} 29... Rd1+ {[%clk 0:00:14.3]} 30. Re1 {[%clk 0:00:11.4]}
30... Rxe1+ {[%clk 0:00:14.5]} 31. Rxe1 {[%clk 0:00:11.6]} 31... Qxe1# {[%clk
0:00:14.3]} 0-1

[Event "*** Titled Tuesday Blitz"]
[Site "Chess.com"]
[Date "2020.11.03"]
[Round "7"]
[White "Chuchofrio1"]
[Black "pfalcon1949"]
[Result "1-0"]
[WhiteElo "2343"]
[BlackElo "1981"]
[TimeControl "180+1"]
[EndTime "11:20:33 PST"]
[Termination "Chuchofrio1 won on time"]

1. e4 {[%clk 0:03:00.9]} 1... c6 {[%clk 0:02:59.5]} 2. d4 {[%clk 0:03:01.1]}
2... d5 {[%clk 0:02:59.3]} 3. exd5 {[%clk 0:03:02]} 3... cxd5 {[%clk 0:02:59.3]}
4. Bd3 {[%clk 0:03:02.9]} 4... Nc6 {[%clk 0:02:59.1]} 5. c3 {[%clk 0:03:02.7]}
5... Nf6 {[%clk 0:02:59.2]} 6. Bf4 {[%clk 0:03:02.6]} 6... Bg4 {[%clk
0:02:58.7]} 7. Qb3 {[%clk 0:03:02.5]} 7... Qd7 {[%clk 0:02:56.6]} 8. Nd2 {[%clk
0:03:03.1]} 8... e6 {[%clk 0:02:56.7]} 9. Ngf3 {[%clk 0:03:03.8]} 9... Bd6
{[%clk 0:02:56.4]} 10. Bxd6 {[%clk 0:03:04.5]} 10... Qxd6 {[%clk 0:02:55.2]} 11.
Qxb7 {[%clk 0:03:04.5]} 11... O-O {[%clk 0:02:46.7]} 12. O-O {[%clk 0:03:03.9]}
12... Rab8 {[%clk 0:02:46.6]} 13. Qa6 {[%clk 0:03:04.4]} 13... Rxb2 {[%clk
0:02:46.4]} 14. Bb5 {[%clk 0:03:03.6]} 14... Rxd2 {[%clk 0:01:19.3]} 15. Nxd2
{[%clk 0:02:56.7]} 15... Qf4 {[%clk 0:01:19.1]} 16. Qxc6 {[%clk 0:02:48.1]}
16... Qxd2 {[%clk 0:01:16.3]} 17. f3 {[%clk 0:02:47.6]} 17... Bf5 {[%clk
0:01:09.3]} 18. Rfd1 {[%clk 0:02:18.6]} 18... Qe3+ {[%clk 0:01:07.4]} 19. Kh1
{[%clk 0:02:18]} 19... h5 {[%clk 0:01:03.2]} 20. c4 {[%clk 0:02:14.5]} 20... h4
{[%clk 0:00:59.5]} 21. cxd5 {[%clk 0:02:13.3]} 21... Nxd5 {[%clk 0:00:58.9]} 22.
Qc1 {[%clk 0:02:02.8]} 22... h3 {[%clk 0:00:47.2]} 23. Qxe3 {[%clk 0:01:13.4]}
23... hxg2+ {[%clk 0:00:48.1]} 24. Kg1 {[%clk 0:01:11.8]} 24... Nxe3 {[%clk
0:00:47.7]} 25. Rdc1 {[%clk 0:01:05.6]} 25... Rb8 {[%clk 0:00:40.3]} 26. a4
{[%clk 0:01:03]} 26... a6 {[%clk 0:00:31.7]} 27. Bxa6 {[%clk 0:01:01.7]} 27...
Rb2 {[%clk 0:00:32.3]} 28. Re1 {[%clk 0:00:52.9]} 28... Nd5 {[%clk 0:00:27]} 29.
Re2 {[%clk 0:00:48.8]} 29... Rb3 {[%clk 0:00:20.3]} 30. Rxg2 {[%clk 0:00:47.6]}
30... Rxf3 {[%clk 0:00:19.7]} 31. Bc4 {[%clk 0:00:43]} 31... Ne3 {[%clk
0:00:17.9]} 32. Rf2 {[%clk 0:00:40]} 32... Rh3 {[%clk 0:00:16.1]} 33. Bf1 {[%clk
0:00:38.3]} 33... Rh4 {[%clk 0:00:13.2]} 34. a5 {[%clk 0:00:37.4]} 34... Be4
{[%clk 0:00:03.6]} 35. h3 {[%clk 0:00:36.3]} 35... Rh5 {[%clk 0:00:02.1]} 36. a6
{[%clk 0:00:33.3]} 36... Rg5+ {[%clk 0:00:02.2]} 37. Kh2 {[%clk 0:00:33.6]} 1-0

[Event "*** Titled Tuesday Blitz"]
[Site "Chess.com"]
[Date "2020.11.03"]
[Round "7"]
[White "PattyCastillo"]
[Black "Forantes"]
[Result "0-1"]
[WhiteElo "1938"]
[BlackElo "2384"]
[TimeControl "180+1"]
[EndTime "11:20:33 PST"]
[Termination "Forantes won on time"]

1. d4 {[%clk 0:03:00.9]} 1... Nf6 {[%clk 0:02:59.9]} 2. Nf3 {[%clk 0:02:59.1]}
2... g6 {[%clk 0:03:00.2]} 3. Nc3 {[%clk 0:02:58]} 3... d5 {[%clk 0:03:00]} 4.
Bf4 {[%clk 0:02:56.8]} 4... Bg7 {[%clk 0:02:59.7]} 5. e3 {[%clk 0:02:56.9]} 5...
O-O {[%clk 0:02:59]} 6. Be2 {[%clk 0:02:56.7]} 6... c5 {[%clk 0:02:58.8]} 7. Ne5
{[%clk 0:02:56.7]} 7... Nc6 {[%clk 0:02:58.8]} 8. O-O {[%clk 0:02:51.4]} 8...
cxd4 {[%clk 0:02:52]} 9. exd4 {[%clk 0:02:51]} 9... Nd7 {[%clk 0:02:51.2]} 10.
Nf3 {[%clk 0:02:41.7]} 10... Nb6 {[%clk 0:02:50.9]} 11. b3 {[%clk 0:02:28.4]}
11... Bg4 {[%clk 0:02:50.6]} 12. Rc1 {[%clk 0:02:15.4]} 12... e6 {[%clk
0:02:45.1]} 13. Ne5 {[%clk 0:02:12.1]} 13... Bxe2 {[%clk 0:02:43.8]} 14. Nxe2
{[%clk 0:02:11.9]} 14... Nd7 {[%clk 0:02:42.8]} 15. Nxd7 {[%clk 0:02:08.4]}
15... Qxd7 {[%clk 0:02:42.6]} 16. c3 {[%clk 0:02:05.9]} 16... Rfc8 {[%clk
0:02:40.4]} 17. Qd2 {[%clk 0:01:56.4]} 17... b5 {[%clk 0:02:36.9]} 18. Rc2
{[%clk 0:01:40.4]} 18... a5 {[%clk 0:02:36.9]} 19. Rfc1 {[%clk 0:01:40.1]} 19...
b4 {[%clk 0:02:30.2]} 20. c4 {[%clk 0:01:37.2]} 20... dxc4 {[%clk 0:02:30.1]}
21. Rxc4 {[%clk 0:01:33.5]} 21... Ne7 {[%clk 0:02:29.3]} 22. Qd3 {[%clk
0:01:09.1]} 22... Nd5 {[%clk 0:02:27.4]} 23. Bg3 {[%clk 0:00:52.9]} 23... Bh6
{[%clk 0:02:23.1]} 24. R1c2 {[%clk 0:00:50.4]} 24... Nb6 {[%clk 0:02:23.1]} 25.
Rc7 {[%clk 0:00:46.5]} 25... Rxc7 {[%clk 0:02:18.7]} 26. Rxc7 {[%clk 0:00:46.3]}
26... Qd5 {[%clk 0:02:19.3]} 27. Qc2 {[%clk 0:00:36.3]} 27... a4 {[%clk
0:02:08.4]} 28. bxa4 {[%clk 0:00:26.2]} 28... Rxa4 {[%clk 0:02:05.8]} 29. Rc8+
{[%clk 0:00:16.3]} 29... Nxc8 {[%clk 0:02:05.4]} 30. Qxa4 {[%clk 0:00:16.1]}
30... Bf8 {[%clk 0:01:50.3]} 31. h4 {[%clk 0:00:15.6]} 31... Nb6 {[%clk
0:01:37.2]} 32. Qa7 {[%clk 0:00:12.2]} 32... Nc4 {[%clk 0:01:33]} 33. Nf4 {[%clk
0:00:11.1]} 33... Qe4 {[%clk 0:01:30.4]} 34. d5 {[%clk 0:00:09.3]} 34... exd5
{[%clk 0:01:24.7]} 35. h5 {[%clk 0:00:07.2]} 35... Nd2 {[%clk 0:01:18.5]} 36.
hxg6 {[%clk 0:00:05.7]} 36... hxg6 {[%clk 0:01:18.4]} 37. Qd7 {[%clk 0:00:02.2]}
37... d4 {[%clk 0:01:04.5]} 38. Nd5 {[%clk 0:00:02.4]} 38... Qb1+ {[%clk
0:00:49.3]} 39. Kh2 {[%clk 0:00:02.1]} 39... Nf1+ {[%clk 0:00:49.9]} 40. Kh3
{[%clk 0:00:01.7]} 40... Qf5+ {[%clk 0:00:50.5]} 0-1

[Event "*** Titled Tuesday Blitz"]
[Site "Chess.com"]
[Date "2020.11.03"]
[Round "7"]
[White "MomchilPetkov"]
[Black "LiemLe"]
[Result "0-1"]
[WhiteElo "2653"]
[BlackElo "2990"]
[TimeControl "180+1"]
[EndTime "11:20:35 PST"]
[Termination "LiemLe won by resignation"]

1. d4 {[%clk 0:03:00.9]} 1... Nf6 {[%clk 0:02:57.9]} 2. Bf4 {[%clk 0:02:57.9]}
2... d5 {[%clk 0:02:57.5]} 3. e3 {[%clk 0:02:56.3]} 3... c5 {[%clk 0:02:57.8]}
4. c3 {[%clk 0:02:53.1]} 4... Qb6 {[%clk 0:02:57.6]} 5. Qb3 {[%clk 0:02:52.8]}
5... Nc6 {[%clk 0:02:52]} 6. Nd2 {[%clk 0:02:52.6]} 6... c4 {[%clk 0:02:47.6]}
7. Qc2 {[%clk 0:02:52.1]} 7... Nh5 {[%clk 0:02:47.5]} 8. Bg3 {[%clk 0:02:49.6]}
8... g6 {[%clk 0:02:46]} 9. e4 {[%clk 0:02:40.6]} 9... e6 {[%clk 0:02:35.6]} 10.
Be2 {[%clk 0:02:36.2]} 10... Nxg3 {[%clk 0:02:31.3]} 11. hxg3 {[%clk 0:02:37.1]}
11... Bg7 {[%clk 0:02:27.9]} 12. Ngf3 {[%clk 0:02:34.5]} 12... O-O {[%clk
0:02:27.4]} 13. O-O {[%clk 0:02:16.4]} 13... Qc7 {[%clk 0:02:26.1]} 14. Rfe1
{[%clk 0:02:14.1]} 14... b5 {[%clk 0:02:25.4]} 15. Nf1 {[%clk 0:02:05.4]} 15...
dxe4 {[%clk 0:02:20.6]} 16. Qxe4 {[%clk 0:02:06.3]} 16... Bb7 {[%clk 0:02:20.9]}
17. Qh4 {[%clk 0:02:06.7]} 17... Ne7 {[%clk 0:02:19.2]} 18. Ne3 {[%clk
0:02:04.2]} 18... Nf5 {[%clk 0:01:55.4]} 19. Nxf5 {[%clk 0:01:57.1]} 19... exf5
{[%clk 0:01:56.3]} 20. a4 {[%clk 0:01:31.4]} 20... a6 {[%clk 0:01:56.1]} 21. Nd2
{[%clk 0:01:12.6]} 21... Rae8 {[%clk 0:01:51.3]} 22. axb5 {[%clk 0:01:11.4]}
22... axb5 {[%clk 0:01:49.9]} 23. Bf3 {[%clk 0:01:11.9]} 23... Qb6 {[%clk
0:01:31.4]} 24. Qf4 {[%clk 0:01:01]} 24... h5 {[%clk 0:01:24.4]} 25. Nf1 {[%clk
0:00:56.9]} 25... Bxf3 {[%clk 0:01:13.9]} 26. gxf3 {[%clk 0:00:52]} 26... Kh7
{[%clk 0:01:11.2]} 27. Kg2 {[%clk 0:00:43.6]} 27... Bh6 {[%clk 0:01:09.5]} 28.
Qh4 {[%clk 0:00:43.9]} 28... b4 {[%clk 0:01:03.7]} 29. Re7 {[%clk 0:00:37.3]}
29... g5 {[%clk 0:00:55.6]} 30. Qxh5 {[%clk 0:00:20.7]} 30... Rxe7 {[%clk
0:00:55.1]} 31. Ne3 {[%clk 0:00:21.2]} 31... Qg6 {[%clk 0:00:50.7]} 32. Qh3
{[%clk 0:00:21.6]} 32... g4 {[%clk 0:00:46.1]} 33. fxg4 {[%clk 0:00:21.5]} 33...
Rxe3 {[%clk 0:00:46.7]} 34. gxf5 {[%clk 0:00:17.7]} 34... Qc6+ {[%clk
0:00:45.9]} 35. Kg1 {[%clk 0:00:18.2]} 35... Re2 {[%clk 0:00:43.9]} 36. d5
{[%clk 0:00:19.1]} 36... Qxd5 {[%clk 0:00:43.4]} 37. Qg4 {[%clk 0:00:19.8]}
37... Rxb2 {[%clk 0:00:41.5]} 38. Rd1 {[%clk 0:00:18]} 38... Rd2 {[%clk
0:00:39.1]} 39. Re1 {[%clk 0:00:18.5]} 39... Rg8 {[%clk 0:00:38.4]} 40. Qh4
{[%clk 0:00:15.9]} 40... bxc3 {[%clk 0:00:36.5]} 41. Kf1 {[%clk 0:00:08.5]}
41... c2 {[%clk 0:00:35.8]} 42. Qh5 {[%clk 0:00:08.9]} 0-1